[Event "Titled Tuesday Blitz March 01 Early 2022"]
[White "Kretov, Evgenij"]
[Black "Reprintsev, Alexander"]
[WhiteFideId "4167821"]
[BlackFideId "14100541"]
[WhiteElo "2303"]
[BlackElo "2126"]
[Result "1-0"]
[Round "06"]
[TimeControl "180+1"]
[Date "2022.03.01"]
[WhiteClock "0:00:10"]
[BlackClock "0:00:02"]

1. d4 {[%clk 0:03:00]}  d5 {[%clk 0:02:56]} 2. c4 {[%clk 0:03:01]}  e5 {[%clk 0:02:56]} 3. dxe5 {[%clk 0:03:00]}  d4 {[%clk 0:02:56]} 4. Nf3 {[%clk 0:03:00]}  Nc6 {[%clk 0:02:56]} 5. g3 {[%clk 0:03:01]}  Nge7 {[%clk 0:02:55]} 6. Nbd2 {[%clk 0:02:47]}  Ng6 {[%clk 0:02:55]} 7. Nb3 {[%clk 0:02:47]}  Ngxe5 {[%clk 0:02:48]} 8. Nxe5 {[%clk 0:02:45]}  Nxe5 {[%clk 0:02:47]} 9. Nxd4 {[%clk 0:02:44]}  Bb4+ {[%clk 0:02:47]} 10. Bd2 {[%clk 0:02:44]}  Qxd4 {[%clk 0:02:45]} 11. Bxb4 {[%clk 0:02:44]}  Qe4 {[%clk 0:02:44]} 12. Qd5 {[%clk 0:02:34]}  Bf5 {[%clk 0:02:10]} 13. Bg2 {[%clk 0:02:11]}  Nd3+ {[%clk 0:01:45]} 14. Qxd3 {[%clk 0:02:09]}  Qxg2 {[%clk 0:01:45]} 15. Qe3+ {[%clk 0:02:09]}  Be6 {[%clk 0:01:45]} 16. O-O-O {[%clk 0:02:07]}  Qc6 {[%clk 0:01:43]} 17. b3 {[%clk 0:02:02]}  a5 {[%clk 0:01:42]} 18. Bc3 {[%clk 0:02:01]}  a4 {[%clk 0:01:41]} 19. Kb2 {[%clk 0:01:59]}  axb3 {[%clk 0:01:40]} 20. axb3 {[%clk 0:01:59]}  O-O {[%clk 0:01:38]} 21. Ra1 {[%clk 0:01:46]}  b5 {[%clk 0:01:27]} 22. Qe5 {[%clk 0:01:41]}  f6 {[%clk 0:01:27]} 23. Qxb5 {[%clk 0:01:38]}  Qe4 {[%clk 0:01:25]} 24. e3 {[%clk 0:01:20]}  Rab8 {[%clk 0:01:24]} 25. Qc5 {[%clk 0:01:08]}  Bxc4 {[%clk 0:01:24]} 26. b4 {[%clk 0:01:05]}  Bf7 {[%clk 0:01:18]} 27. Rhd1 {[%clk 0:01:00]}  Qe6 {[%clk 0:01:07]} 28. Ra3 {[%clk 0:01:00]}  Ra8 {[%clk 0:01:06]} 29. Rda1 {[%clk 0:01:00]}  Rad8 {[%clk 0:01:04]} 30. Bd4 {[%clk 0:00:54]}  Qh3 {[%clk 0:00:58]} 31. Qxc7 {[%clk 0:00:49]}  Qxh2 {[%clk 0:00:58]} 32. Qf4 {[%clk 0:00:47]}  Qh5 {[%clk 0:00:56]} 33. g4 {[%clk 0:00:44]}  Qd5 {[%clk 0:00:56]} 34. Rc1 {[%clk 0:00:33]}  Rb8 {[%clk 0:00:54]} 35. Bc5 {[%clk 0:00:32]}  Rfd8 {[%clk 0:00:53]} 36. Rc2 {[%clk 0:00:25]}  Qd1 {[%clk 0:00:52]} 37. e4 {[%clk 0:00:21]}  Ra8 {[%clk 0:00:43]} 38. Qe3 {[%clk 0:00:19]}  Qxg4 {[%clk 0:00:33]} 39. Rc1 {[%clk 0:00:18]}  Qe6 {[%clk 0:00:33]} 40. Rca1 {[%clk 0:00:17]}  Rab8 {[%clk 0:00:33]} 41. f4 {[%clk 0:00:16]}  Qc4 {[%clk 0:00:32]} 42. Rc1 {[%clk 0:00:14]}  Rxb4+ {[%clk 0:00:32]} 43. Bxb4 {[%clk 0:00:14]}  Qxb4+ {[%clk 0:00:32]} 44. Ka1 {[%clk 0:00:15]}  Rb8 {[%clk 0:00:30]} 45. Qc3 {[%clk 0:00:14]}  Qb7 {[%clk 0:00:28]} 46. e5 {[%clk 0:00:12]}  fxe5 {[%clk 0:00:26]} 47. fxe5 {[%clk 0:00:12]}  h5 {[%clk 0:00:27]} 48. Rg1 {[%clk 0:00:12]}  Be6 {[%clk 0:00:26]} 49. Qd4 {[%clk 0:00:11]}  Bg4 {[%clk 0:00:20]} 50. Rc1 {[%clk 0:00:10]}  Qf7 {[%clk 0:00:18]} 51. Qc4 {[%clk 0:00:10]}  Be6 {[%clk 0:00:17]} 52. Qd4 {[%clk 0:00:10]}  Re8 {[%clk 0:00:16]} 53. Ra7 {[%clk 0:00:10]}  Qg6 {[%clk 0:00:16]} 54. Rg1 {[%clk 0:00:09]}  Bg4 {[%clk 0:00:16]} 55. Rc1 {[%clk 0:00:07]}  Kh7 {[%clk 0:00:16]} 56. Rcc7 {[%clk 0:00:08]}  Rg8 {[%clk 0:00:16]} 57. e6 {[%clk 0:00:08]}  h4 {[%clk 0:00:16]} 58. e7 {[%clk 0:00:07]}  Bh5 {[%clk 0:00:16]} 59. Qe5 {[%clk 0:00:07]}  Qg1+ {[%clk 0:00:15]} 60. Kb2 {[%clk 0:00:07]}  Qb6+ {[%clk 0:00:15]} 61. Kc3 {[%clk 0:00:06]}  Be8 {[%clk 0:00:11]} 62. Qf5+ {[%clk 0:00:06]}  Kh8 {[%clk 0:00:10]} 63. Qf4 {[%clk 0:00:06]}  Qf6+ {[%clk 0:00:07]} 64. Qxf6 {[%clk 0:00:06]}  gxf6 {[%clk 0:00:08]} 65. Rc4 {[%clk 0:00:06]}  Rg3+ {[%clk 0:00:06]} 66. Kb4 {[%clk 0:00:06]}  h3 {[%clk 0:00:06]} 67. Rc8 {[%clk 0:00:07]}  Rg8 {[%clk 0:00:06]} 68. Rc3 {[%clk 0:00:07]}  Kg7 {[%clk 0:00:06]} 69. Rxh3 {[%clk 0:00:07]}  Kf7 {[%clk 0:00:07]} 70. Rh7+ {[%clk 0:00:07]}  Ke6 {[%clk 0:00:07]} 71. Rh3 {[%clk 0:00:08]}  Kf7 {[%clk 0:00:07]} 72. Re3 {[%clk 0:00:08]}  Rg5 {[%clk 0:00:07]} 73. Kc4 {[%clk 0:00:08]}  Rg1 {[%clk 0:00:05]} 74. Kd5 {[%clk 0:00:08]}  Rd1+ {[%clk 0:00:05]} 75. Ke4 {[%clk 0:00:09]}  Bc6+ {[%clk 0:00:05]} 76. Kf4 {[%clk 0:00:09]}  Rd4+ {[%clk 0:00:04]} 77. Kg3 {[%clk 0:00:09]}  Be8 {[%clk 0:00:04]} 78. Re1 {[%clk 0:00:09]}  Rd5 {[%clk 0:00:04]} 79. Re2 {[%clk 0:00:09]}  Rg5+ {[%clk 0:00:04]} 80. Kf4 {[%clk 0:00:09]}  Rc5 {[%clk 0:00:04]} 81. Rh2 {[%clk 0:00:10]}  Rb5 {[%clk 0:00:03]} 82. Rh7+ {[%clk 0:00:10]}  Ke6 {[%clk 0:00:03]} 83. Rh8 {[%clk 0:00:10]}  Rb4+ {[%clk 0:00:02]} 84. Ke3 {[%clk 0:00:10]} 1-0


[Site "https://www.chess.com"]

[Event "Titled Tuesday Blitz March 01 Early 2022"]
[White "Krishnan, Varun"]
[Black "Aydin, Gulenay"]
[WhiteFideId "5054508"]
[BlackFideId "34557431"]
[WhiteElo "2585"]
[BlackElo "1429"]
[Result "1-0"]
[Round "06"]
[TimeControl "180+1"]
[Date "2022.03.01"]
[WhiteClock "0:00:05"]
[BlackClock "0:00:04"]

1. e4 {[%clk 0:03:00]}  c5 {[%clk 0:03:00]} 2. Nf3 {[%clk 0:02:59]}  d6 {[%clk 0:03:00]} 3. d4 {[%clk 0:02:54]}  cxd4 {[%clk 0:03:01]} 4. Nxd4 {[%clk 0:02:55]}  Nf6 {[%clk 0:03:01]} 5. Nc3 {[%clk 0:02:55]}  g6 {[%clk 0:03:01]} 6. Be3 {[%clk 0:02:54]}  Bg7 {[%clk 0:03:02]} 7. f3 {[%clk 0:02:55]}  a6 {[%clk 0:03:02]} 8. Qd2 {[%clk 0:02:55]}  h5 {[%clk 0:03:03]} 9. O-O-O {[%clk 0:02:55]}  b5 {[%clk 0:03:03]} 10. h3 {[%clk 0:02:55]}  Bb7 {[%clk 0:03:03]} 11. Rg1 {[%clk 0:02:55]}  Nbd7 {[%clk 0:03:03]} 12. g4 {[%clk 0:02:55]}  Ne5 {[%clk 0:03:03]} 13. g5 {[%clk 0:02:54]}  Nfd7 {[%clk 0:03:03]} 14. f4 {[%clk 0:02:54]}  Nc6 {[%clk 0:02:53]} 15. f5 {[%clk 0:02:32]}  Nxd4 {[%clk 0:02:50]} 16. Bxd4 {[%clk 0:02:25]}  Ne5 {[%clk 0:02:48]} 17. Qf2 {[%clk 0:02:04]}  O-O {[%clk 0:02:31]} 18. Nd5 {[%clk 0:01:50]}  Bxd5 {[%clk 0:02:27]} 19. exd5 {[%clk 0:01:51]}  Rc8 {[%clk 0:02:26]} 20. Bd3 {[%clk 0:01:36]}  Nxd3+ {[%clk 0:01:28]} 21. Rxd3 {[%clk 0:01:37]}  Bxd4 {[%clk 0:01:17]} 22. Qxd4 {[%clk 0:01:27]}  Qc7 {[%clk 0:01:12]} 23. Rc3 {[%clk 0:01:18]}  Qa5 {[%clk 0:01:07]} 24. Rxc8 {[%clk 0:00:53]}  Rxc8 {[%clk 0:01:08]} 25. fxg6 {[%clk 0:00:52]}  fxg6 {[%clk 0:00:59]} 26. Qe4 {[%clk 0:00:44]}  Qxa2 {[%clk 0:00:48]} 27. Qxg6+ {[%clk 0:00:43]}  Kh8 {[%clk 0:00:47]} 28. Qh6+ {[%clk 0:00:42]}  Kg8 {[%clk 0:00:47]} 29. Qg6+ {[%clk 0:00:40]}  Kh8 {[%clk 0:00:47]} 30. Qxh5+ {[%clk 0:00:40]}  Kg8 {[%clk 0:00:46]} 31. Qg6+ {[%clk 0:00:38]}  Kh8 {[%clk 0:00:46]} 32. Rg4 {[%clk 0:00:20]}  Rc4 {[%clk 0:00:28]} 33. Qe8+ {[%clk 0:00:18]}  Kg7 {[%clk 0:00:27]} 34. Qxe7+ {[%clk 0:00:18]}  Kg8 {[%clk 0:00:26]} 35. Qe6+ {[%clk 0:00:18]}  Kg7 {[%clk 0:00:25]} 36. Qf6+ {[%clk 0:00:18]}  Kg8 {[%clk 0:00:25]} 37. Qg6+ {[%clk 0:00:18]}  Kf8 {[%clk 0:00:24]} 38. Qf5+ {[%clk 0:00:17]}  Kg8 {[%clk 0:00:22]} 39. Qe6+ {[%clk 0:00:16]}  Kg7 {[%clk 0:00:22]} 40. Qxd6 {[%clk 0:00:13]}  Qa1+ {[%clk 0:00:19]} 41. Kd2 {[%clk 0:00:13]}  Rxg4 {[%clk 0:00:11]} 42. hxg4 {[%clk 0:00:12]}  Qg1 {[%clk 0:00:12]} 43. Qf6+ {[%clk 0:00:11]}  Kg8 {[%clk 0:00:12]} 44. d6 {[%clk 0:00:08]}  Qg2+ {[%clk 0:00:11]} 45. Kd3 {[%clk 0:00:08]}  Qd5+ {[%clk 0:00:11]} 46. Ke3 {[%clk 0:00:08]}  Qc5+ {[%clk 0:00:10]} 47. Kf4 {[%clk 0:00:08]}  Qf2+ {[%clk 0:00:09]} 48. Ke5 {[%clk 0:00:08]}  Qe3+ {[%clk 0:00:08]} 49. Kf5 {[%clk 0:00:08]}  Qf3+ {[%clk 0:00:08]} 50. Ke6 {[%clk 0:00:08]}  Qe4+ {[%clk 0:00:07]} 51. Kd7 {[%clk 0:00:08]}  Qb7+ {[%clk 0:00:07]} 52. Ke6 {[%clk 0:00:08]}  Qe4+ {[%clk 0:00:08]} 53. Qe5 {[%clk 0:00:08]}  Qxg4+ {[%clk 0:00:08]} 54. Ke7 {[%clk 0:00:07]}  Qb4 {[%clk 0:00:06]} 55. Ke8 {[%clk 0:00:05]}  Qc4 {[%clk 0:00:04]} 56. c3 {[%clk 0:00:02]}  Qc8+ {[%clk 0:00:03]} 57. Ke7 {[%clk 0:00:02]}  Qb7+ {[%clk 0:00:01]} 58. d7 {[%clk 0:00:02]}  Qc6 {[%clk 0:00:02]} 59. Qe6+ {[%clk 0:00:02]}  Kh7 {[%clk 0:00:02]} 60. Qxc6 {[%clk 0:00:02]}  Kg7 {[%clk 0:00:03]} 61. d8=Q {[%clk 0:00:02]}  a5 {[%clk 0:00:03]} 62. Qdd7 {[%clk 0:00:03]}  b4 {[%clk 0:00:04]} 63. Kd6+ {[%clk 0:00:04]}  Kf8 {[%clk 0:00:04]} 64. Kc5 {[%clk 0:00:05]}  a4 {[%clk 0:00:04]} 65. Qcc8# {[%clk 0:00:05]} 1-0


[Site "https://www.chess.com"]

[Event "Titled Tuesday Blitz March 01 Early 2022"]
[White "Krysa, Leandro"]
[Black "Demchenko, Anton"]
[WhiteFideId "116807"]
[BlackFideId "4160258"]
[WhiteElo "2490"]
[BlackElo "2539"]
[Result "0-1"]
[Round "06"]
[TimeControl "180+1"]
[Date "2022.03.01"]
[WhiteClock "0:00:06"]
[BlackClock "0:00:16"]

1. e4 {[%clk 0:03:00]}  e5 {[%clk 0:02:59]} 2. Nf3 {[%clk 0:03:00]}  Nc6 {[%clk 0:03:00]} 3. Nc3 {[%clk 0:03:00]}  Nf6 {[%clk 0:03:00]} 4. a4 {[%clk 0:03:01]}  g6 {[%clk 0:02:58]} 5. d4 {[%clk 0:02:54]}  exd4 {[%clk 0:02:58]} 6. Nxd4 {[%clk 0:02:55]}  Bg7 {[%clk 0:02:58]} 7. Nf3 {[%clk 0:02:51]}  O-O {[%clk 0:02:58]} 8. Bc4 {[%clk 0:02:45]}  d6 {[%clk 0:02:37]} 9. O-O {[%clk 0:02:44]}  Bg4 {[%clk 0:02:36]} 10. h3 {[%clk 0:02:41]}  Bxf3 {[%clk 0:02:21]} 11. Qxf3 {[%clk 0:02:42]}  Ne5 {[%clk 0:02:20]} 12. Qe2 {[%clk 0:02:41]}  Re8 {[%clk 0:02:19]} 13. Ba2 {[%clk 0:02:38]}  c6 {[%clk 0:02:19]} 14. Rb1 {[%clk 0:02:29]}  Qc7 {[%clk 0:02:14]} 15. Bf4 {[%clk 0:02:25]}  Re7 {[%clk 0:02:06]} 16. Qd2 {[%clk 0:02:12]}  Rae8 {[%clk 0:02:03]} 17. Rbd1 {[%clk 0:02:09]}  Rd7 {[%clk 0:01:48]} 18. Rfe1 {[%clk 0:02:09]}  a6 {[%clk 0:01:34]} 19. Bh6 {[%clk 0:01:51]}  b5 {[%clk 0:01:13]} 20. Bxg7 {[%clk 0:01:49]}  Kxg7 {[%clk 0:01:14]} 21. f4 {[%clk 0:01:32]}  Nc4 {[%clk 0:01:13]} 22. Bxc4 {[%clk 0:01:31]}  bxc4 {[%clk 0:01:14]} 23. Qd4 {[%clk 0:01:27]}  Rde7 {[%clk 0:01:06]} 24. Qxd6 {[%clk 0:01:16]}  Qb6+ {[%clk 0:01:03]} 25. Qd4 {[%clk 0:01:12]}  Qxb2 {[%clk 0:01:01]} 26. e5 {[%clk 0:01:11]}  Nh5 {[%clk 0:00:34]} 27. g4 {[%clk 0:01:02]}  Nxf4 {[%clk 0:00:34]} 28. Qxf4 {[%clk 0:00:38]}  Qxc3 {[%clk 0:00:33]} 29. Qd4 {[%clk 0:00:22]}  Qxh3 {[%clk 0:00:31]} 30. Re3 {[%clk 0:00:22]}  Qh4 {[%clk 0:00:28]} 31. Rf1 {[%clk 0:00:19]}  Kg8 {[%clk 0:00:23]} 32. Qxc4 {[%clk 0:00:19]}  Qg5 {[%clk 0:00:22]} 33. Ref3 {[%clk 0:00:14]}  Rf8 {[%clk 0:00:17]} 34. e6 {[%clk 0:00:12]}  f5 {[%clk 0:00:17]} 35. Qxc6 {[%clk 0:00:06]}  Qxg4+ {[%clk 0:00:16]} 36. Kh2 {[%clk 0:00:06]}  Qh4+ {[%clk 0:00:16]} 37. Kg2 {[%clk 0:00:06]}  Qg5+ {[%clk 0:00:16]} 0-1


[Site "https://www.chess.com"]

[Event "Titled Tuesday Blitz March 01 Early 2022"]
[White "Kucuksari, Kaan"]
[Black "Budrewicz, Krzysztof"]
[WhiteFideId "6380166"]
[BlackFideId "1127950"]
[WhiteElo "2305"]
[BlackElo "2248"]
[Result "1-0"]
[Round "06"]
[TimeControl "180+1"]
[Date "2022.03.01"]
[WhiteClock "0:00:03"]
[BlackClock "0:00:02"]

1. d4 {[%clk 0:03:00]}  Nf6 {[%clk 0:02:58]} 2. c4 {[%clk 0:03:01]}  g6 {[%clk 0:02:58]} 3. g3 {[%clk 0:03:01]}  Bg7 {[%clk 0:02:59]} 4. Bg2 {[%clk 0:03:01]}  O-O {[%clk 0:02:59]} 5. Nc3 {[%clk 0:03:02]}  d6 {[%clk 0:03:00]} 6. Nf3 {[%clk 0:03:02]}  Nc6 {[%clk 0:02:59]} 7. O-O {[%clk 0:03:02]}  e5 {[%clk 0:03:00]} 8. dxe5 {[%clk 0:03:03]}  Nxe5 {[%clk 0:03:00]} 9. Bg5 {[%clk 0:03:04]}  h6 {[%clk 0:02:55]} 10. Bxf6 {[%clk 0:03:01]}  Bxf6 {[%clk 0:02:50]} 11. Nxe5 {[%clk 0:03:01]}  Bxe5 {[%clk 0:02:44]} 12. Qd2 {[%clk 0:03:00]}  Kh7 {[%clk 0:02:38]} 13. f4 {[%clk 0:02:58]}  Bg7 {[%clk 0:02:35]} 14. f5 {[%clk 0:02:58]}  Be5 {[%clk 0:02:26]} 15. Be4 {[%clk 0:02:49]}  c6 {[%clk 0:02:13]} 16. fxg6+ {[%clk 0:02:39]}  fxg6 {[%clk 0:02:12]} 17. Rxf8 {[%clk 0:02:40]}  Qxf8 {[%clk 0:02:13]} 18. Rf1 {[%clk 0:02:41]}  Qg7 {[%clk 0:02:10]} 19. h4 {[%clk 0:02:05]}  Kg8 {[%clk 0:02:03]} 20. Qd3 {[%clk 0:02:00]}  g5 {[%clk 0:01:42]} 21. Bg6 {[%clk 0:01:56]}  Be6 {[%clk 0:01:40]} 22. h5 {[%clk 0:01:43]}  Rf8 {[%clk 0:01:38]} 23. Rf3 {[%clk 0:01:42]}  Rxf3 {[%clk 0:01:33]} 24. exf3 {[%clk 0:01:43]}  Bxg3 {[%clk 0:01:07]} 25. Ne4 {[%clk 0:01:31]}  Qe5 {[%clk 0:00:59]} 26. Kg2 {[%clk 0:00:48]}  Bf4 {[%clk 0:00:59]} 27. Nf2 {[%clk 0:00:44]}  Kg7 {[%clk 0:00:43]} 28. b4 {[%clk 0:00:29]}  Kf8 {[%clk 0:00:32]} 29. c5 {[%clk 0:00:21]}  d5 {[%clk 0:00:30]} 30. b5 {[%clk 0:00:20]}  Ke7 {[%clk 0:00:21]} 31. bxc6 {[%clk 0:00:20]}  bxc6 {[%clk 0:00:22]} 32. Qa6 {[%clk 0:00:20]}  Qc7 {[%clk 0:00:22]} 33. Qa3 {[%clk 0:00:14]}  a5 {[%clk 0:00:17]} 34. Qb2 {[%clk 0:00:14]}  Be5 {[%clk 0:00:16]} 35. Qc2 {[%clk 0:00:14]}  d4 {[%clk 0:00:15]} 36. Bf5 {[%clk 0:00:10]}  Bd5 {[%clk 0:00:15]} 37. Ng4 {[%clk 0:00:10]}  Bf6 {[%clk 0:00:10]} 38. Qe2+ {[%clk 0:00:09]}  Kf7 {[%clk 0:00:08]} 39. Nxh6+ {[%clk 0:00:07]}  Kg7 {[%clk 0:00:09]} 40. Ng4 {[%clk 0:00:08]}  Qf4 {[%clk 0:00:07]} 41. h6+ {[%clk 0:00:08]}  Kf7 {[%clk 0:00:07]} 42. Be4 {[%clk 0:00:05]}  Bxe4 {[%clk 0:00:06]} 43. Qxe4 {[%clk 0:00:06]}  Qxe4 {[%clk 0:00:06]} 44. fxe4 {[%clk 0:00:07]}  Bh8 {[%clk 0:00:05]} 45. Kf3 {[%clk 0:00:05]}  Kg6 {[%clk 0:00:05]} 46. e5 {[%clk 0:00:03]}  Kf5 {[%clk 0:00:05]} 47. Ke2 {[%clk 0:00:02]}  Kg6 {[%clk 0:00:02]} 48. e6 {[%clk 0:00:03]} 1-0


[Site "https://www.chess.com"]

[Event "Titled Tuesday Blitz March 01 Early 2022"]
[White "Kukula, Pawel"]
[Black "Escudero Donoso, Felipe"]
[WhiteFideId "1115081"]
[BlackFideId "3410595"]
[WhiteElo "2203"]
[BlackElo "2184"]
[Result "1-0"]
[Round "06"]
[TimeControl "180+1"]
[Date "2022.03.01"]
[WhiteClock "0:00:35"]
[BlackClock "0:00:02"]

1. d4 {[%clk 0:02:59]}  Nf6 {[%clk 0:03:00]} 2. c4 {[%clk 0:02:59]}  e6 {[%clk 0:03:00]} 3. Nc3 {[%clk 0:02:59]}  d5 {[%clk 0:03:01]} 4. cxd5 {[%clk 0:02:58]}  exd5 {[%clk 0:03:01]} 5. Bg5 {[%clk 0:02:58]}  c6 {[%clk 0:03:02]} 6. Qc2 {[%clk 0:02:58]}  Bd6 {[%clk 0:03:00]} 7. e3 {[%clk 0:02:58]}  O-O {[%clk 0:03:01]} 8. Bd3 {[%clk 0:02:58]}  h6 {[%clk 0:03:01]} 9. Bh4 {[%clk 0:02:57]}  Re8 {[%clk 0:03:02]} 10. Nge2 {[%clk 0:02:56]}  a5 {[%clk 0:03:02]} 11. O-O {[%clk 0:02:47]}  Bxh2+ {[%clk 0:03:01]} 12. Kxh2 {[%clk 0:02:47]}  Ng4+ {[%clk 0:02:59]} 13. Kg3 {[%clk 0:02:37]}  g5 {[%clk 0:02:59]} 14. Bf5 {[%clk 0:02:30]}  gxh4+ {[%clk 0:02:45]} 15. Kh3 {[%clk 0:02:20]}  Qg5 {[%clk 0:02:11]} 16. Bxc8 {[%clk 0:02:18]}  Rxc8 {[%clk 0:01:54]} 17. e4 {[%clk 0:02:00]}  Nd7 {[%clk 0:01:45]} 18. Qc1 {[%clk 0:01:48]}  Qg7 {[%clk 0:01:34]} 19. Qf4 {[%clk 0:01:46]}  Ngf6 {[%clk 0:00:50]} 20. e5 {[%clk 0:01:41]}  Nh7 {[%clk 0:00:41]} 21. Qxh4 {[%clk 0:01:36]}  Ndf8 {[%clk 0:00:30]} 22. f4 {[%clk 0:01:35]}  Ng6 {[%clk 0:00:25]} 23. Qg4 {[%clk 0:01:34]}  Ne7 {[%clk 0:00:19]} 24. Qxg7+ {[%clk 0:01:33]}  Kxg7 {[%clk 0:00:20]} 25. g4 {[%clk 0:01:34]}  c5 {[%clk 0:00:18]} 26. Rad1 {[%clk 0:01:33]}  c4 {[%clk 0:00:15]} 27. Kg3 {[%clk 0:01:32]}  a4 {[%clk 0:00:15]} 28. f5 {[%clk 0:01:29]}  f6 {[%clk 0:00:15]} 29. Nf4 {[%clk 0:01:26]}  Ng5 {[%clk 0:00:14]} 30. exf6+ {[%clk 0:01:22]}  Kxf6 {[%clk 0:00:14]} 31. Nfxd5+ {[%clk 0:01:23]}  Nxd5 {[%clk 0:00:15]} 32. Nxd5+ {[%clk 0:01:24]}  Kf7 {[%clk 0:00:15]} 33. Rfe1 {[%clk 0:01:19]}  Re8 {[%clk 0:00:11]} 34. Nb6 {[%clk 0:01:06]}  Rxe1 {[%clk 0:00:11]} 35. Rxe1 {[%clk 0:01:07]}  Rd8 {[%clk 0:00:10]} 36. d5 {[%clk 0:01:05]}  Rd6 {[%clk 0:00:09]} 37. Nxc4 {[%clk 0:01:02]}  Rxd5 {[%clk 0:00:07]} 38. Re3 {[%clk 0:00:55]}  Rd1 {[%clk 0:00:05]} 39. b3 {[%clk 0:00:48]}  b5 {[%clk 0:00:04]} 40. Ne5+ {[%clk 0:00:47]}  Kf6 {[%clk 0:00:05]} 41. bxa4 {[%clk 0:00:46]}  bxa4 {[%clk 0:00:04]} 42. Nf3 {[%clk 0:00:46]}  Nxf3 {[%clk 0:00:02]} 43. Kxf3 {[%clk 0:00:46]}  Rb1 {[%clk 0:00:01]} 44. Re4 {[%clk 0:00:40]}  a3 {[%clk 0:00:01]} 45. Re3 {[%clk 0:00:39]}  Rf1+ {[%clk 0:00:01]} 46. Kg2 {[%clk 0:00:36]}  Rf4 {[%clk 0:00:01]} 47. Kg3 {[%clk 0:00:35]}  Ra4 {[%clk 0:00:02]} 48. Rb3 {[%clk 0:00:35]}  Ra5 {[%clk 0:00:01]} 49. Rb6+ {[%clk 0:00:35]}  Kg5 {[%clk 0:00:02]} 50. Rg6# {[%clk 0:00:35]} 1-0


[Site "https://www.chess.com"]

[Event "Titled Tuesday Blitz March 01 Early 2022"]
[White "Kushko, Dmitriy"]
[Black "Shafigullina, Zarina"]
[WhiteFideId "14162261"]
[BlackFideId "24174220"]
[WhiteElo "2225"]
[BlackElo "2062"]
[Result "1-0"]
[Round "06"]
[TimeControl "180+1"]
[Date "2022.03.01"]
[WhiteClock "0:01:17"]
[BlackClock "0:01:08"]

1. Nf3 {[%clk 0:03:00]}  Nf6 {[%clk 0:02:59]} 2. g3 {[%clk 0:03:00]}  b6 {[%clk 0:02:59]} 3. Bg2 {[%clk 0:03:01]}  Bb7 {[%clk 0:03:00]} 4. O-O {[%clk 0:03:01]}  c5 {[%clk 0:02:59]} 5. c4 {[%clk 0:03:01]}  e6 {[%clk 0:02:59]} 6. Nc3 {[%clk 0:03:00]}  Be7 {[%clk 0:03:00]} 7. Re1 {[%clk 0:03:00]}  d5 {[%clk 0:02:58]} 8. cxd5 {[%clk 0:02:59]}  Nxd5 {[%clk 0:02:58]} 9. Nxd5 {[%clk 0:03:00]}  Bxd5 {[%clk 0:02:54]} 10. e4 {[%clk 0:02:56]}  Bb7 {[%clk 0:02:53]} 11. d4 {[%clk 0:02:56]}  cxd4 {[%clk 0:02:54]} 12. Nxd4 {[%clk 0:02:56]}  O-O {[%clk 0:02:54]} 13. Be3 {[%clk 0:02:38]}  Nd7 {[%clk 0:02:54]} 14. Qe2 {[%clk 0:02:36]}  Rc8 {[%clk 0:02:51]} 15. Rad1 {[%clk 0:02:33]}  Qe8 {[%clk 0:02:46]} 16. Nb5 {[%clk 0:02:32]}  Ba6 {[%clk 0:02:40]} 17. Bf1 {[%clk 0:02:29]}  Ne5 {[%clk 0:02:32]} 18. Kg2 {[%clk 0:02:18]}  Nc4 {[%clk 0:02:29]} 19. Nc3 {[%clk 0:02:13]}  Nxe3+ {[%clk 0:02:25]} 20. Qxe3 {[%clk 0:02:13]}  Bc5 {[%clk 0:02:23]} 21. Qf3 {[%clk 0:02:12]}  Bb7 {[%clk 0:02:19]} 22. Bb5 {[%clk 0:02:12]}  Bc6 {[%clk 0:02:17]} 23. Bxc6 {[%clk 0:02:12]}  Qxc6 {[%clk 0:02:18]} 24. e5 {[%clk 0:02:12]}  Qxf3+ {[%clk 0:02:16]} 25. Kxf3 {[%clk 0:02:12]}  Rfd8 {[%clk 0:02:17]} 26. Rxd8+ {[%clk 0:02:08]}  Rxd8 {[%clk 0:02:18]} 27. Rd1 {[%clk 0:02:09]}  Rxd1 {[%clk 0:02:17]} 28. Nxd1 {[%clk 0:02:10]}  Bd4 {[%clk 0:02:18]} 29. Ke4 {[%clk 0:02:10]}  Bc5 {[%clk 0:02:16]} 30. f4 {[%clk 0:02:10]}  Kf8 {[%clk 0:02:16]} 31. b3 {[%clk 0:02:06]}  Ke7 {[%clk 0:02:16]} 32. Nb2 {[%clk 0:02:07]}  Kd7 {[%clk 0:02:15]} 33. Nd3 {[%clk 0:02:06]}  Bg1 {[%clk 0:02:14]} 34. h3 {[%clk 0:02:03]}  Kc6 {[%clk 0:02:13]} 35. g4 {[%clk 0:02:01]}  a5 {[%clk 0:02:04]} 36. a3 {[%clk 0:01:49]}  Bh2 {[%clk 0:01:59]} 37. f5 {[%clk 0:01:44]}  h6 {[%clk 0:01:47]} 38. h4 {[%clk 0:01:26]}  Bg3 {[%clk 0:01:44]} 39. h5 {[%clk 0:01:26]}  Bh2 {[%clk 0:01:31]} 40. f6 {[%clk 0:01:25]}  gxf6 {[%clk 0:01:26]} 41. exf6 {[%clk 0:01:25]}  Bd6 {[%clk 0:01:18]} 42. Ne5+ {[%clk 0:01:20]}  Kc7 {[%clk 0:01:12]} 43. Nxf7 {[%clk 0:01:20]}  Bxa3 {[%clk 0:01:12]} 44. Nxh6 {[%clk 0:01:19]}  b5 {[%clk 0:01:12]} 45. g5 {[%clk 0:01:18]}  a4 {[%clk 0:01:12]} 46. bxa4 {[%clk 0:01:18]}  bxa4 {[%clk 0:01:08]} 47. g6 {[%clk 0:01:17]}  Bf8 {[%clk 0:01:07]} 48. g7 {[%clk 0:01:17]}  Bxg7 {[%clk 0:01:07]} 49. fxg7 {[%clk 0:01:17]}  a3 {[%clk 0:01:07]} 50. g8=Q {[%clk 0:01:17]}  a2 {[%clk 0:01:08]} 51. Qg7+ {[%clk 0:01:17]} 1-0


[Site "https://www.chess.com"]

[Event "Titled Tuesday Blitz March 01 Early 2022"]
[White "Lakshmi C"]
[Black "Mohammadian, Mohammad"]
[WhiteFideId "25035347"]
[BlackFideId "12566055"]
[WhiteElo "1775"]
[BlackElo "1543"]
[Result "1-0"]
[Round "06"]
[TimeControl "180+1"]
[Date "2022.03.01"]
[WhiteClock "0:01:46"]
[BlackClock "0:00:18"]

1. e4 {[%clk 0:02:54]}  e5 {[%clk 0:02:59]} 2. Nf3 {[%clk 0:02:54]}  Nc6 {[%clk 0:02:58]} 3. Bb5 {[%clk 0:02:54]}  a6 {[%clk 0:02:57]} 4. Ba4 {[%clk 0:02:54]}  Nf6 {[%clk 0:02:56]} 5. O-O {[%clk 0:02:54]}  Be7 {[%clk 0:02:54]} 6. Re1 {[%clk 0:02:54]}  b5 {[%clk 0:02:52]} 7. Bb3 {[%clk 0:02:55]}  d6 {[%clk 0:02:50]} 8. c3 {[%clk 0:02:54]}  Na5 {[%clk 0:02:50]} 9. Bc2 {[%clk 0:02:54]}  c5 {[%clk 0:02:49]} 10. d4 {[%clk 0:02:52]}  Qc7 {[%clk 0:02:49]} 11. h3 {[%clk 0:02:51]}  O-O {[%clk 0:02:44]} 12. d5 {[%clk 0:02:50]}  Bd7 {[%clk 0:02:40]} 13. Nbd2 {[%clk 0:02:49]}  h6 {[%clk 0:02:38]} 14. Nf1 {[%clk 0:02:48]}  Nc4 {[%clk 0:02:31]} 15. Ng3 {[%clk 0:02:36]}  a5 {[%clk 0:02:22]} 16. a4 {[%clk 0:02:35]}  b4 {[%clk 0:02:20]} 17. b3 {[%clk 0:02:34]}  Nb6 {[%clk 0:02:18]} 18. c4 {[%clk 0:02:34]}  Nh7 {[%clk 0:02:14]} 19. Nh2 {[%clk 0:02:32]}  Qd8 {[%clk 0:02:13]} 20. f4 {[%clk 0:02:32]}  exf4 {[%clk 0:02:11]} 21. Bxf4 {[%clk 0:02:31]}  Ng5 {[%clk 0:02:03]} 22. Ng4 {[%clk 0:02:18]}  Qc8 {[%clk 0:01:22]} 23. Nf5 {[%clk 0:02:15]}  Bxf5 {[%clk 0:01:10]} 24. exf5 {[%clk 0:02:15]}  Bf6 {[%clk 0:01:09]} 25. Nxf6+ {[%clk 0:02:12]}  gxf6 {[%clk 0:01:09]} 26. h4 {[%clk 0:02:11]}  Nh7 {[%clk 0:01:00]} 27. Bxd6 {[%clk 0:02:03]}  Re8 {[%clk 0:00:49]} 28. Qh5 {[%clk 0:01:51]}  Kg7 {[%clk 0:00:40]} 29. Bf4 {[%clk 0:01:50]}  Rxe1+ {[%clk 0:00:33]} 30. Rxe1 {[%clk 0:01:49]}  Ng5 {[%clk 0:00:33]} 31. hxg5 {[%clk 0:01:46]}  fxg5 {[%clk 0:00:33]} 32. f6+ {[%clk 0:01:45]}  Kf8 {[%clk 0:00:23]} 33. Qxh6+ {[%clk 0:01:45]}  Kg8 {[%clk 0:00:18]} 34. Qg7# {[%clk 0:01:46]} 1-0


[Site "https://www.chess.com"]